[Event "RUS-chTW Premier 2019"]
[Site "Sochi"]
[Date "2019.05.09"]
[Round "8.11"]
[White "Shafigullina, Zarina"]
[Black "Bivol, Alina"]
[Result "0-1"]
[ECO "A49"]
[WhiteElo "2299"]
[BlackElo "2393"]
[Annotator "ChessBase"]
[PlyCount "184"]
[EventDate "2019.05.01"]
[EventType "team-tourn"]
[EventCountry "RUS"]
[SourceTitle "playchess.com"]
[Source "ChessBase"]
[SourceQuality "1"]
[TimeControl "40/5400+30:1800+30"]

1. d4 {[%emt 0:00:00]} Nf6 {[%emt 0:00:00]} 2. Nf3 {[%emt 0:00:00]} g6 {[%emt 0:00:00]} 3. g3 {[%emt 0:00:13]} Bg7 {[%emt 0:00:08]} 4. Bg2 {[%emt 0:00:16]} O-O {[%emt 0:00:38]} 5. c4 {[%emt 0:00:28]} d6 {[%emt 0:00:07]} 6. O-O {[%emt 0:00:29]} Nc6 {[%emt 0:01:01]} 7. Nc3 {[%emt 0:00:17]} Rb8 {[%emt 0:00:05]} 8. Re1 {[%emt 0:00:42]} a6 {[%emt 0:02:07]} 9. e4 {[%emt 0:00:44]} Bg4 {[%emt 0:01:17]} 10. Be3 {[%emt 0:02:23]} Nd7 {[%emt 0:00:28]} 11. Qd2 {[%emt 0:09:15]} e5 {[%emt 0:03:18]} 12. d5 {[%emt 0:00:10]} Bxf3 {[%emt 0:00:39]} 13. Bxf3 {[%emt 0:00:08]} Nd4 {[%emt 0:00:04]} 14. Bg2 {[%emt 0:00:22]} c5 {[%emt 0:00:34]} 15. dxc6 {[%emt 0:01:45]} bxc6 {[%emt 0:00:13]} 16. Ne2 {[%emt 0:06:17]} c5 {[%emt 0:00:20]} 17. Nc1 {[%emt 0:01:33]} Qc7 {[%emt 0:03:12]} 18. Nd3 {[%emt 0:00:44]} a5 {[%emt 0:02:40]} 19. Rac1 {[%emt 0:03:47]} Qa7 {[%emt 0:04:02]} 20. h4 {[%emt 0:11:17]} Rb7 {[%emt 0:01:59]} 21. f4 {[%emt 0:07:32]} Qa6 {[%emt 0:05:23]} 22. h5 {[%emt 0:03:02]} Nb6 {[%emt 0:04:02]} 23. b3 {[%emt 0:11:08]} Nd7 {[%emt 0:04:51]} 24. Bxd4 {[%emt 0:08:38]} cxd4 {[%emt 0:01:25]} 25. c5 {[%emt 0:00:19]} dxc5 {[%emt 0:04:07]} 26. Nxc5 {[%emt 0:02:45]} Nxc5 {[%emt 0:00:05]} 27. Rxc5 {[%emt 0:00:03]} gxh5 {[%emt 0:10:27]} 28. fxe5 {[%emt 0:14:46]} a4 {[%emt 0:03:12]} 29. e6 {[%emt 0:02:59]} fxe6 {[%emt 0:08:02]} 30. e5 {[%emt 0:03:28]} Ra7 {[%emt 0:04:51]} 31. b4 {[%emt 0:00:51]} d3 {[%emt 0:05:20]} 32. Rc6 {[%emt 0:04:49]} Qb5 {[%emt 0:00:08]} 33. Rxe6 {[%emt 0:00:13]} Rd8 {[%emt 0:05:18]} 34. Kh1 {[%emt 0:01:31]} Qb8 {[%emt 0:06:47]} 35. Re3 {[%emt 0:01:06]} Rad7 {[%emt 0:01:17]} 36. a3 {[%emt 0:00:56]} Rd4 {[%emt 0:01:56]} 37. Re1 {[%emt 0:00:16]} Qa7 {[%emt 0:07:40]} 38. Qg5 {[%emt 0:00:41]} Qf7 {[%emt 0:04:50]} 39. Re7 {[%emt 0:00:06]} Qg6 {[%emt 0:00:09]} 40. Qxg6 {[%emt 0:00:00]} hxg6 {[%emt 0:00:00]} 41. e6 {[%emt 0:02:35]} d2 {[%emt 0:01:32]} 42. Rd1 {[%emt 0:00:27]} R4d6 {[%emt 0:00:45]} 43. Rd7 {[%emt 0:01:24]} R6xd7 {[%emt 0:00:57]} 44. exd7 {[%emt 0:00:06]} Rxd7 {[%emt 0:00:05]} 45. Bc6 {[%emt 0:00:08]} Rd3 {[%emt 0:00:10]} 46. Bxa4 {[%emt 0:01:51]} Rxa3 {[%emt 0:00:57]} 47. Bc2 {[%emt 0:00:20]} Bh6 {[%emt 0:01:08]} 48. b5 {[%emt 0:05:59]} Rc3 {[%emt 0:05:51]} 49. Bxg6 {[%emt 0:00:31]} Rxg3 {[%emt 0:00:02]} 50. Be4 {[%emt 0:03:43]} Re3 {[%emt 0:03:07]} 51. Bd5+ {[%emt 0:00:54]} Kf8 {[%emt 0:00:29]} 52. Kg2 {[%emt 0:01:12]} Re5 {[%emt 0:02:12]} 53. Bc6 {[%emt 0:02:38]} Rc5 {[%emt 0:00:06]} 54. Kf2 {[%emt 0:00:53]} Bg5 {[%emt 0:01:45]} 55. Ke2 {[%emt 0:03:28]} h4 {[%emt 0:02:14]} 56. Kd3 {[%emt 0:00:36]} Ke7 {[%emt 0:00:15]} 57. Ke2 {[%emt 0:02:45]} Kd6 {[%emt 0:00:24]} 58. Kd3 {[%emt 0:03:58]} Rc1 {[%emt 0:00:28]} 59. Ke2 {[%emt 0:00:15]} Kc5 {[%emt 0:00:04]} 60. Bd7 {[%emt 0:00:35]} Rc3 {[%emt 0:00:18]} 61. Rg1 {[%emt 0:03:54]} Re3+ {[%emt 0:01:53]} 62. Kd1 {[%emt 0:01:09]} Re5 {[%emt 0:00:13]} 63. Rh1 {[%emt 0:02:06]} Kd6 {[%emt 0:03:06]} 64. Bc6 {[%emt 0:00:09]} Rc5 {[%emt 0:00:02]} 65. Ke2 {[%emt 0:01:38]} Rc1 {[%emt 0:00:04]} 66. Rd1 {[%emt 0:00:52]} h3 {[%emt 0:00:06]} 67. Bf3 {[%emt 0:01:23]} Kc5 {[%emt 0:00:06]} 68. Kf2 {[%emt 0:01:28]} Bf4 {[%emt 0:00:54]} 69. Be2 {[%emt 0:00:16]} h2 {[%emt 0:01:11]} 70. Kg2 {[%emt 0:00:07]} Kb4 {[%emt 0:00:11]} 71. b6 {[%emt 0:01:34]} Kc3 {[%emt 0:00:04]} 72. b7 {[%emt 0:00:19]} Kc2 {[%emt 0:00:10]} 73. Rh1 {[%emt 0:00:05]} Re1 {[%emt 0:04:16]} 74. Bf3 {[%emt 0:00:41]} Kd3 {[%emt 0:00:51]} 75. Bd1 {[%emt 0:00:41]} Kd4 {[%emt 0:00:07]} 76. Bf3 {[%emt 0:00:42]} Kc5 {[%emt 0:00:04]} 77. Bd1 {[%emt 0:00:15]} Kb6 {[%emt 0:00:04]} 78. Bf3 {[%emt 0:00:08]} Kc7 {[%emt 0:00:03]} 79. Bd1 {[%emt 0:00:21]} Kxb7 {[%emt 0:00:07]} 80. Bf3+ {[%emt 0:00:14]} Kb6 {[%emt 0:01:07]} 81. Bd1 {[%emt 0:00:12]} Kc5 {[%emt 0:00:08]} 82. Bf3 {[%emt 0:00:23]} Kd4 {[%emt 0:00:05]} 83. Bd1 {[%emt 0:00:23]} Ke3 {[%emt 0:00:05]} 84. Bg4 {[%emt 0:00:21]} Bg3 {[%emt 0:00:52]} 85. Bh5 {[%emt 0:02:09]} Be5 {[%emt 0:02:35]} 86. Bd1 {[%emt 0:00:35]} Bd6 {[%emt 0:01:43]} 87. Bh5 {[%emt 0:00:21]} Rc1 {[%emt 0:06:30]} 88. Bd1 {[%emt 0:00:39]} Rc5 {[%emt 0:02:19]} 89. Rf1 {[%emt 0:00:09]} Rg5+ {[%emt 0:00:15]} 90. Kh1 {[%emt 0:00:09]} Kd4 {[%emt 0:00:35]} 91. Bc2 {[%emt 0:01:12]} Re5 {[%emt 0:00:21]} 92. Rd1 {[%emt 0:00:36]} Re1+ {[%emt 0:00:07]} 0-1

[Event "RUS-chTW Premier 2019"]
[Site "Sochi"]
[Date "2019.05.09"]
[Round "8.12"]
[White "Voit, Daria"]
[Black "Bulatova, Kamaliya"]
[Result "1-0"]
[ECO "A20"]
[WhiteElo "2340"]
[BlackElo "2103"]
[Annotator "NA"]
[PlyCount "71"]
[EventDate "2019.05.01"]
[EventType "team-tourn"]
[EventCountry "RUS"]
[SourceTitle "playchess.com"]
[Source "ChessBase"]
[SourceQuality "1"]
[TimeControl "40/5400+30:1800+30"]

1. c4 {[%emt 0:00:00]} e5 {[%emt 0:00:00]} 2. d3 {[%emt 0:00:22]} g6 {[%emt 0:01:12]} 3. g3 {[%emt 0:00:22]} Bg7 {[%emt 0:00:09]} 4. Bg2 {[%emt 0:00:02]} d6 {[%emt 0:00:41]} 5. Nc3 {[%emt 0:00:27]} Ne7 {[%emt 0:00:31]} 6. Rb1 {[%emt 0:04:29]} O-O {[%emt 0:03:29] A21: English Opening: 1...e5 2 Nc3} (6... a5 7. e4 c5 8. Nge2 Nbc6 9. O-O O-O 10. Nb5 f5 11. exf5 Nxf5 12. Nec3 Nfd4 13. Be3 Kh8 14. Bxd4 Nxd4 {1-0 (38) Markowski,T (2552)-Kanarek,M (2530) Suwalki 2017}) 7. e3 {[%emt 0:01:06]} c6 {[%emt 0:03:30]} 8. Nge2 {[%emt 0:00:33]} Be6 {[%emt 0:02:59]} 9. b4 {[%emt 0:01:18]} Qd7 {[%emt 0:06:04]} 10. O-O {[%emt 0:00:30]} Bh3 {[%emt 0:03:04]} 11. Bxh3 $146 {[%emt 0:07:24]} ({Predecessor:} 11. b5 Bxg2 12. Kxg2 Qc7 13. Ba3 {½-½ (21) Tonoli,P (2155)-Le Quang,K (2235) Belgium 1997}) 11... Qxh3 {[%emt 0:00:07]} 12. b5 {[%emt 0:00:03]} Qe6 {[%emt 0:10:03]} 13. bxc6 {[%emt 0:07:19]} bxc6 {[%emt 0:01:15]} 14. Qa4 {[%emt 0:05:04]} Nd7 {[%emt 0:03:43]} 15. Ba3 {[%emt 0:04:00]} f5 {[%emt 0:06:38]} 16. e4 {[%emt 0:11:00]} f4 {[%emt 0:07:39]} 17. f3 {[%emt 0:00:15]} g5 {[%emt 0:00:57]} 18. Rb7 {[%emt 0:05:18]} a5 {[%emt 0:14:54]} 19. Nd5 {[%emt 0:03:03]} Nxd5 $18 {[%emt 0:13:55]} ({Black should try} 19... Rac8 $1 $14) 20. cxd5 {[%emt 0:01:56]} Qh3 {[%emt 0:00:07]} 21. dxc6 {[%emt 0:08:06]} Nf6 {[%emt 0:00:51]} 22. Rf2 {[%emt 0:15:24]} g4 {[%emt 0:04:44]} 23. Qb3+ {[%emt 0:01:22]} Kh8 {[%emt 0:00:50]} 24. Qe6 {[%emt 0:02:39]} Qh5 {[%emt 0:03:02]} 25. gxf4 {[%emt 0:06:59]} Rae8 {[%emt 0:01:45]} 26. Qxd6 {[%emt 0:07:04]} gxf3 {[%emt 0:01:42]} 27. Ng3 {[%emt 0:00:15]} Qh3 {[%emt 0:00:44]} 28. Rxg7 {[%emt 0:03:00]} Kxg7 {[%emt 0:01:24]} 29. Rxf3 {[%emt 0:00:09]} Qg4 {[%emt 0:01:14]} 30. Kg2 {[%emt 0:00:39]} exf4 {[%emt 0:03:03]} 31. Rxf4 {[%emt 0:01:12]} Qd1 {[%emt 0:02:45]} 32. Bb2 {[%emt 0:00:32]} Qd2+ {[%emt 0:00:47]} 33. Rf2 {[%emt 0:00:05]} Qg5 {[%emt 0:00:12]} 34. Rxf6 {[%emt 0:00:44]} Rxf6 {[%emt 0:00:18]} 35. Bxf6+ {[%emt 0:00:04]} Qxf6 {[%emt 0:00:04]} 36. Nh5+ {[%emt 0:00:07]} 1-0

[Event "RUS-chTW Premier 2019"]
[Site "Sochi"]
[Date "2019.05.09"]
[Round "8.13"]
[White "Borisova, Ekaterina"]
[Black "Badelka, Olga"]
[Result "1-0"]
[ECO "D20"]
[WhiteElo "2292"]
[BlackElo "2383"]
[Annotator "ChessBase"]
[PlyCount "147"]
[EventDate "2019.05.01"]
[EventType "team-tourn"]
[EventCountry "RUS"]
[SourceTitle "playchess.com"]
[Source "ChessBase"]
[SourceQuality "1"]
[TimeControl "40/5400+30:1800+30"]

1. d4 {[%emt 0:00:00]} d5 {[%emt 0:00:00]} 2. c4 {[%emt 0:00:00]} dxc4 {[%emt 0:00:00]} 3. e4 {[%emt 0:00:00]} Nf6 {[%emt 0:00:04]} 4. e5 {[%emt 0:00:00]} Nd5 {[%emt 0:00:03]} 5. Bxc4 {[%emt 0:00:00]} Nb6 {[%emt 0:00:07]} 6. Bb3 {[%emt 0:00:00]} Nc6 {[%emt 0:00:20]} 7. Ne2 {[%emt 0:00:00]} Bf5 {[%emt 0:03:46]} 8. Nbc3 {[%emt 0:00:06]} e6 {[%emt 0:00:16]} 9. O-O {[%emt 0:00:05]} Qd7 {[%emt 0:00:07]} 10. Be3 {[%emt 0:00:05]} O-O-O {[%emt 0:00:06]} 11. Qc1 {[%emt 0:00:04]} f6 {[%emt 0:07:39]} 12. Rd1 {[%emt 0:02:37]} Nb4 {[%emt 0:07:40]} 13. Ng3 {[%emt 0:14:43]} Bg6 {[%emt 0:01:53]} 14. Nge4 {[%emt 0:00:13]} N4d5 {[%emt 0:12:08]} 15. f3 {[%emt 0:08:38]} Nxe3 {[%emt 0:06:47]} 16. Qxe3 {[%emt 0:00:05]} Nd5 {[%emt 0:00:37]} 17. Qf2 {[%emt 0:14:29]} c6 {[%emt 0:05:09]} 18. Rac1 {[%emt 0:06:48]} Kb8 {[%emt 0:06:25]} 19. exf6 {[%emt 0:01:34]} gxf6 {[%emt 0:01:02]} 20. Nxd5 {[%emt 0:00:32]} exd5 {[%emt 0:00:46]} 21. Nxf6 {[%emt 0:00:21]} Qg7 {[%emt 0:01:33]} 22. Ng4 {[%emt 0:00:32]} Bd6 {[%emt 0:00:36]} 23. Re1 {[%emt 0:04:18]} Rde8 {[%emt 0:04:05]} 24. f4 {[%emt 0:03:07]} Be4 {[%emt 0:01:14]} 25. Ne5 {[%emt 0:00:35]} c5 {[%emt 0:04:28]} 26. Bc2 {[%emt 0:02:44]} cxd4 {[%emt 0:00:20]} 27. Bxe4 {[%emt 0:02:07]} dxe4 {[%emt 0:00:13]} 28. Rxe4 {[%emt 0:01:18]} Bxe5 {[%emt 0:07:40]} 29. fxe5 {[%emt 0:01:18]} d3 {[%emt 0:03:06]} 30. Rd1 {[%emt 0:01:53]} Qc7 {[%emt 0:07:20]} 31. Qe3 {[%emt 0:05:27]} Rhg8 {[%emt 0:09:51]} 32. Rxd3 {[%emt 0:04:33]} Re6 {[%emt 0:00:47]} 33. Rd1 {[%emt 0:04:05]} Qc2 {[%emt 0:00:31]} 34. Qe2 {[%emt 0:00:30]} Qc5+ {[%emt 0:01:01]} 35. Kh1 {[%emt 0:00:16]} Rf8 {[%emt 0:02:32]} 36. Rf1 {[%emt 0:03:53]} Rfe8 {[%emt 0:00:03]} 37. Re1 {[%emt 0:00:26]} Rf8 {[%emt 0:00:43]} 38. b4 {[%emt 0:02:05]} Qe7 {[%emt 0:02:51]} 39. a4 {[%emt 0:00:49]} Rc8 {[%emt 0:01:04]} 40. a5 {[%emt 0:00:00]} a6 {[%emt 0:00:00]} 41. h3 {[%emt 0:02:54]} Rc3 {[%emt 0:03:24]} 42. Qd2 {[%emt 0:01:08]} Rc8 {[%emt 0:04:11]} 43. Rd4 {[%emt 0:01:05]} Re8 {[%emt 0:09:07]} 44. Rd7 {[%emt 0:07:06]} Qh4 {[%emt 0:00:07]} 45. Re2 {[%emt 0:01:38]} Rc6 {[%emt 0:04:23]} 46. Kh2 {[%emt 0:03:15]} Ka8 {[%emt 0:07:00]} 47. Rd4 {[%emt 0:09:05]} Qe7 {[%emt 0:00:24]} 48. Qd3 {[%emt 0:00:07]} Rg6 {[%emt 0:03:22]} 49. Rd7 {[%emt 0:03:51]} Qxb4 {[%emt 0:02:02]} 50. Rxh7 {[%emt 0:02:48]} Rc6 {[%emt 0:04:28]} 51. Qf3 {[%emt 0:02:39]} Qb5 {[%emt 0:01:22]} 52. e6 {[%emt 0:04:04]} Rc1 {[%emt 0:00:37]} 53. Rg7 {[%emt 0:01:57]} Qb1 {[%emt 0:00:17]} 54. e7 {[%emt 0:01:36]} Rh1+ {[%emt 0:00:04]} 55. Kg3 {[%emt 0:00:05]} Qb4 {[%emt 0:00:39]} 56. Rg6 {[%emt 0:01:17]} Qxa5 {[%emt 0:00:23]} 57. Ree6 {[%emt 0:02:35]} Qc7+ {[%emt 0:00:17]} 58. Qf4 {[%emt 0:01:28]} Qc8 {[%emt 0:00:48]} 59. h4 {[%emt 0:03:07]} Qd7 {[%emt 0:00:15]} 60. Qe4 {[%emt 0:00:35]} Qc7+ {[%emt 0:00:22]} 61. Qe5 {[%emt 0:00:50]} Qc4 {[%emt 0:00:21]} 62. Rg4 {[%emt 0:01:20]} Qd3+ {[%emt 0:00:48]} 63. Qe3 {[%emt 0:00:13]} Qd7 {[%emt 0:00:09]} 64. Rd4 {[%emt 0:00:59]} Qc7+ {[%emt 0:00:08]} 65. Kg4 {[%emt 0:02:45]} Rg8+ {[%emt 0:02:02]} 66. Kh5 {[%emt 0:00:51]} Rh8+ {[%emt 0:00:32]} 67. Kg6 {[%emt 0:01:45]} Rg8+ {[%emt 0:00:23]} 68. Kf7 {[%emt 0:00:45]} Rc8 {[%emt 0:00:09]} 69. Qf4 {[%emt 0:00:36]} Qc5 {[%emt 0:00:59]} 70. Re5 {[%emt 0:00:50]} Qc7 {[%emt 0:00:27]} 71. Red5 {[%emt 0:00:34]} Qc2 {[%emt 0:00:28]} 72. Rd8 {[%emt 0:00:47]} Qh7+ {[%emt 0:00:36]} 73. Kf6 {[%emt 0:00:08]} Rhc1 {[%emt 0:00:26]} 74. Qxc1 {[%emt 0:00:40]} 1-0

[Event "RUS-chTW Premier 2019"]
[Site "Sochi"]
[Date "2019.05.09"]
[Round "8.14"]
[White "Dordzhieva, Dinara"]
[Black "Smirnova, Ekaterina"]
[Result "1-0"]
[ECO "A11"]
[WhiteElo "2280"]
[BlackElo "2204"]
[Annotator "NA"]
[PlyCount "71"]
[EventDate "2019.05.01"]
[EventType "team-tourn"]
[EventCountry "RUS"]
[SourceTitle "playchess.com"]
[Source "ChessBase"]
[SourceQuality "1"]
[TimeControl "40/5400+30:1800+30"]

1. c4 {[%emt 0:00:00]} c6 {[%emt 0:00:00]} 2. Nf3 {[%emt 0:00:00]} d5 {[%emt 0:00:00]} 3. g3 {[%emt 0:00:00]} Nf6 {[%emt 0:00:00]} 4. Bg2 {[%emt 0:00:00]} Bg4 {[%emt 0:00:00]} 5. Ne5 {[%emt 0:00:04]} Be6 {[%emt 0:00:21]} 6. cxd5 {[%emt 0:00:06]} Bxd5 {[%emt 0:00:03]} 7. Nf3 {[%emt 0:00:04]} c5 {[%emt 0:00:09]} 8. Nc3 {[%emt 0:00:05]} Bc6 {[%emt 0:00:03]} 9. O-O {[%emt 0:00:08]} e6 {[%emt 0:00:10]} 10. Re1 {[%emt 0:00:08]} Be7 {[%emt 0:01:12]} 11. e4 {[%emt 0:00:06]} O-O {[%emt 0:05:06]} 12. d4 {[%emt 0:01:36]} cxd4 {[%emt 0:14:13]} 13. Nxd4 {[%emt 0:00:11]} e5 {[%emt 0:01:40]} 14. Nf5 {[%emt 0:09:23]} Bc5 {[%emt 0:06:27]} 15. Qf3 {[%emt 0:06:26]} Nbd7 {[%emt 0:02:32]} 16. Bg5 {[%emt 0:01:34]} Qb6 {[%emt 0:03:51]} 17. Rab1 {[%emt 0:10:56]} a5 {[%emt 0:05:03]} 18. a3 $16 {[%emt 0:02:19]} a4 {[%emt 0:01:21]} 19. Red1 {[%emt 0:07:00]} Qb3 {[%emt 0:09:16]} 20. Rd3 {[%emt 0:04:26]} Bb5 {[%emt 0:16:09]} 21. Rd2 {[%emt 0:02:50]} Ra6 {[%emt 0:06:08]} 22. Nxb5 {[%emt 0:10:45]} Qxb5 {[%emt 0:00:02]} 23. Bf1 {[%emt 0:00:05]} Qb3 {[%emt 0:05:56]} 24. Qxb3 {[%emt 0:03:20]} axb3 {[%emt 0:00:02]} 25. Bxa6 {[%emt 0:00:05]} bxa6 {[%emt 0:00:06]} 26. Be3 {[%emt 0:14:40]} g6 {[%emt 0:00:55]} 27. Bxc5 {[%emt 0:03:35]} Nxc5 {[%emt 0:00:05]} 28. Ne7+ {[%emt 0:00:02]} Kg7 {[%emt 0:00:06]} 29. f3 {[%emt 0:00:10]} Ne6 {[%emt 0:02:10]} 30. Nc6 {[%emt 0:01:06]} Re8 {[%emt 0:01:53]} 31. Rd3 {[%emt 0:04:10]} Nc5 {[%emt 0:00:23]} 32. Rc3 {[%emt 0:00:06]} Nfd7 {[%emt 0:01:07]} 33. Rbc1 {[%emt 0:00:20]} Na4 {[%emt 0:00:16]} 34. Rxb3 {[%emt 0:00:42]} Ndc5 {[%emt 0:00:05]} 35. Re3 {[%emt 0:00:36]} Re6 {[%emt 0:00:50]} 36. b3 {[%emt 0:01:05]} 1-0

[Event "RUS-chTW Premier 2019"]
[Site "Sochi"]
[Date "2019.05.09"]
[Round "8.15"]
[White "Tishova, Svetlana"]
[Black "Maltsevskaya, Aleksandra"]
[Result "0-1"]
[ECO "B40"]
[WhiteElo "2093"]
[BlackElo "2299"]
[Annotator "ChessBase"]
[PlyCount "92"]
[EventDate "2019.05.01"]
[EventType "team-tourn"]
[EventCountry "RUS"]
[SourceTitle "playchess.com"]
[Source "ChessBase"]
[SourceQuality "1"]
[TimeControl "40/5400+30:1800+30"]

1. e4 {[%emt 0:00:00]} c5 {[%emt 0:00:00]} 2. Nf3 {[%emt 0:00:00]} e6 {[%emt 0:00:00]} 3. c4 {[%emt 0:00:00]} Nc6 {[%emt 0:00:00]} 4. Nc3 {[%emt 0:00:09]} Nd4 {[%emt 0:06:40]} 5. Nxd4 {[%emt 0:01:11]} cxd4 {[%emt 0:00:06]} 6. Ne2 {[%emt 0:00:28]} Nf6 {[%emt 0:08:25]} 7. d3 {[%emt 0:08:35]} Qb6 {[%emt 0:07:07]} 8. g3 {[%emt 0:04:24]} g6 {[%emt 0:12:00]} 9. Bg2 {[%emt 0:01:16]} Bg7 {[%emt 0:00:04]} 10. O-O {[%emt 0:00:17]} O-O {[%emt 0:00:06]} 11. h3 {[%emt 0:01:33]} Ne8 {[%emt 0:00:46]} 12. Rb1 {[%emt 0:01:54]} a5 {[%emt 0:00:26]} 13. Qa4 {[%emt 0:08:09]} Nc7 {[%emt 0:12:56]} 14. Bd2 {[%emt 0:02:54]} d6 {[%emt 0:04:01]} 15. Kh2 {[%emt 0:08:03]} e5 {[%emt 0:06:40]} 16. f4 {[%emt 0:04:27]} Qc6 {[%emt 0:03:30]} 17. Qa3 {[%emt 0:03:10]} f6 {[%emt 0:09:36]} 18. b3 {[%emt 0:08:47]} Bd7 {[%emt 0:03:13]} 19. Qb2 {[%emt 0:01:44]} Ne6 {[%emt 0:00:35]} 20. a3 {[%emt 0:00:22]} b5 {[%emt 0:01:45]} 21. Rfc1 {[%emt 0:04:08]} Nc5 {[%emt 0:01:14]} 22. Qc2 {[%emt 0:03:51]} Qa6 {[%emt 0:11:17]} 23. b4 {[%emt 0:13:40]} axb4 {[%emt 0:00:52]} 24. axb4 {[%emt 0:00:14]} Na4 {[%emt 0:01:04]} 25. g4 Rfc8 26. Qb3 {[%emt 0:10:17]} bxc4 {[%emt 0:02:30]} 27. Rxc4 {[%emt 0:03:59]} Rxc4 {[%emt 0:01:12]} 28. dxc4 {[%emt 0:00:36]} Be6 {[%emt 0:00:04]} 29. b5 {[%emt 0:00:48]} Qc8 {[%emt 0:00:10]} 30. Rc1 {[%emt 0:01:10]} Nc5 {[%emt 0:01:07]} 31. Qb1 {[%emt 0:02:47]} Bh6 {[%emt 0:01:07]} 32. g5 {[%emt 0:01:11]} fxg5 {[%emt 0:00:47]} 33. fxe5 {[%emt 0:01:06]} Bg7 {[%emt 0:01:02]} 34. Bxg5 {[%emt 0:00:21]} Bxe5+ {[%emt 0:00:35]} 35. Bf4 {[%emt 0:04:39]} Ra3 {[%emt 0:00:12]} 36. Bxe5 {[%emt 0:00:40]} dxe5 37. Ng1 Rb3 {[%emt 0:05:03]} 38. Qa2 {[%emt 0:01:04]} Rxb5 39. Nf3 Rb3 {[%emt 0:00:42]} 40. Qa7 {[%emt 0:00:00]} Rb7 41. Qa3 Rb3 {[%emt 0:06:33]} 42. Qa7 {[%emt 0:05:18]} Rb2 {[%emt 0:10:59]} 43. Qa3 {[%emt 0:15:49]} Re2 {[%emt 0:07:07]} 44. Nxe5 {[%emt 0:00:30]} Qc7 {[%emt 0:00:16]} 45. Qg3 {[%emt 0:00:33]} Nxe4 {[%emt 0:00:16]} 46. Qf4 g5 0-1

[Event "RUS-chTW Premier 2019"]
[Site "Sochi"]
[Date "2019.05.09"]
[Round "8.16"]
[White "Diakonova, Ekaterina"]
[Black "Ivanova, Karina"]
[Result "1/2-1/2"]
[ECO "C00"]
[WhiteElo "2211"]
[BlackElo "2096"]
[Annotator "NA"]
[PlyCount "134"]
[EventDate "2019.05.01"]
[EventType "team-tourn"]
[EventCountry "RUS"]
[SourceTitle "playchess.com"]
[Source "ChessBase"]
[SourceQuality "1"]
[TimeControl "40/5400+30:1800+30"]

1. e4 {[%emt 0:00:00]} e6 {[%emt 0:00:00]} 2. d3 {[%emt 0:01:25]} d5 {[%emt 0:00:00]} 3. Nd2 {[%emt 0:00:04]} c5 {[%emt 0:01:26]} 4. g3 {[%emt 0:00:06]} Nc6 {[%emt 0:00:06]} 5. Bg2 {[%emt 0:00:04]} g6 {[%emt 0:01:17]} 6. Ne2 {[%emt 0:09:16]} Bg7 {[%emt 0:00:19] C00: French: Unusual White 2nd moves} 7. O-O {[%emt 0:00:44]} Nge7 {[%emt 0:00:20]} 8. exd5 {[%emt 0:10:40]} (8. f4 O-O 9. c3 a5 10. a4 b6 11. e5 f6 12. exf6 Bxf6 13. Nf3 d4 14. cxd4 cxd4 15. Ne5 Bb7 16. Qb3 Nd5 17. Nxc6 Bxc6 {0-1 (46) Movsziszian,K (2556)-Barsov,A (2505) Sort 2009}) 8... Nxd5 {[%emt 0:06:56]} 9. Ne4 {[%emt 0:00:54]} b6 {[%emt 0:01:53]} 10. c4 {[%emt 0:01:28]} Nde7 {[%emt 0:01:55]} 11. Bg5 {[%emt 0:01:01]} Bb7 {[%emt 0:00:53]} 12. Nf6+ {[%emt 0:06:30]} Kf8 {[%emt 0:00:18]} 13. f4 $146 {[%emt 0:04:48]} ({Predecessor:} 13. Ne4 Bxb2 {1-0 (25) Stock,C-Donko,M (2240) Kecskemet 1990}) 13... Qc7 {[%emt 0:03:27]} 14. g4 {[%emt 0:04:58]} h6 {[%emt 0:01:14]} 15. Bh4 {[%emt 0:00:24]} Rd8 {[%emt 0:03:14]} 16. Nc3 {[%emt 0:07:00]} Nb4 {[%emt 0:02:32]} 17. Bxb7 {[%emt 0:08:39]} Qxb7 {[%emt 0:01:05]} 18. Nce4 {[%emt 0:00:21]} h5 {[%emt 0:04:31]} 19. gxh5 {[%emt 0:05:28]} gxh5 {[%emt 0:17:49]} 20. Qe2 {[%emt 0:00:56]} Nf5 {[%emt 0:05:43]} 21. Nh7+ {[%emt 0:03:50]} Rxh7 {[%emt 0:00:08]} 22. Bxd8 {[%emt 0:00:06] [#]} Bd4+ {[%emt 0:10:05]} (22... Nd4 $1 $17 {[%cal Rd4e2]} 23. Qg2 Ndc2) 23. Kh1 {[%emt 0:00:25]} f6 {[%emt 0:04:09]} 24. Qf3 $11 {[%emt 0:06:47]} Nh4 {[%emt 0:01:58]} 25. Qh3 {[%emt 0:01:57]} Nf5 {[%emt 0:00:47]} 26. Rg1 {[%emt 0:03:29]} Qa8 {[%emt 0:03:10]} 27. Bc7 {[%emt 0:03:48]} Na6 {[%emt 0:06:58]} 28. Bd6+ {[%emt 0:00:21]} Nxd6 $15 {[%emt 0:00:47]} 29. Qxe6 {[%emt 0:01:07]} Nf7 {[%emt 0:00:09]} 30. Rg6 {[%emt 0:04:32]} Nc7 {[%emt 0:00:59]} 31. Qf5 {[%emt 0:00:14]} Ne8 {[%emt 0:02:00]} 32. Rb1 {[%emt 0:06:43]} Ng7 {[%emt 0:04:21]} 33. Qd5 {[%emt 0:00:02]} Qxd5 {[%emt 0:00:29]} 34. cxd5 {[%emt 0:00:01]} Ne8 {[%emt 0:00:24]} 35. b4 {[%emt 0:00:44]} f5 {[%emt 0:01:59]} 36. Ng3 {[%emt 0:03:12]} Ned6 {[%emt 0:00:05]} 37. bxc5 {[%emt 0:00:26]} Bxc5 {[%emt 0:00:08]} 38. Ne2 {[%emt 0:00:35]} b5 {[%emt 0:00:43]} 39. Rc1 {[%emt 0:03:23]} Bb6 {[%emt 0:00:21]} 40. Re6 {[%emt 0:00:00]} Rh6 {[%emt 0:00:00]} 41. Rc6 {[%emt 0:01:33]} Kg7 {[%emt 0:01:38]} 42. Ng3 {[%emt 0:00:56]} h4 {[%emt 0:01:46]} 43. Rxh6 {[%emt 0:03:41]} Nxh6 {[%emt 0:00:23]} 44. Nh5+ {[%emt 0:06:29]} Kg6 {[%emt 0:00:08]} 45. Rxd6+ {[%emt 0:00:11]} Kxh5 {[%emt 0:00:06]} 46. Rf6 {[%emt 0:00:52]} Bd4 {[%emt 0:06:19]} 47. Re6 {[%emt 0:04:00]} h3 {[%emt 0:02:05]} 48. d6 {[%emt 0:01:13]} Nf7 {[%emt 0:00:53]} 49. d7 {[%emt 0:03:31]} Kg4 {[%emt 0:00:18]} 50. Re8 {[%emt 0:02:46]} Bb6 {[%emt 0:00:07]} 51. Rf8 {[%emt 0:00:09]} Nd8 {[%emt 0:00:09]} 52. Rh8 {[%emt 0:00:09]} b4 {[%emt 0:01:32]} 53. d4 {[%emt 0:01:45]} a5 {[%emt 0:03:54]} 54. Rh6 {[%emt 0:03:22]} Bxd4 {[%emt 0:00:24]} 55. Ra6 {[%emt 0:00:23]} Kxf4 {[%emt 0:00:10]} 56. Ra8 {[%emt 0:01:29]} Bf6 {[%emt 0:06:05]} 57. Rxa5 {[%emt 0:00:12]} Be7 {[%emt 0:02:19]} 58. Kg1 {[%emt 0:00:57]} Kg4 {[%emt 0:02:31]} 59. Re5 {[%emt 0:00:46]} Bg5 {[%emt 0:00:28]} 60. Rb5 {[%emt 0:00:42]} Nc6 {[%emt 0:00:13]} 61. Kf1 {[%emt 0:00:38]} Be7 {[%emt 0:01:29]} 62. Rb6 {[%emt 0:00:44]} Nd8 {[%emt 0:00:22]} 63. Rh6 {[%emt 0:01:20]} f4 {[%emt 0:00:31]} 64. Rg6+ {[%emt 0:00:38]} Bg5 {[%emt 0:00:16]} 65. Rb6 {[%emt 0:00:24]} Be7 {[%emt 0:00:22]} 66. Rg6+ {[%emt 0:00:04]} Kf3 {[%emt 0:01:13]} 67. Rh6 {[%emt 0:00:58]} Kg4 {[%emt 0:00:06]} 1/2-1/2